Workbook

Sheet Parms
A1: Harmonic | B1: Voltage | F1: Current | J1: Energy | L1: Van | M1: Vbn | N1: Ian | O1: Ibn
B2: Voltage | C2: Phase | D2: An | E2: Bn | F2: Current | G2: Phase | H2: An | I2: Bn
A3: 1 | B3: 100 | C3: 0 | D3: =IF(ABS($B3*SIN($C3*PI()/180))<0.0000000001,0,$B3*SIN($C3*PI()/180)) -> 0 | E3: =IF(ABS($B3*COS($C3*PI()/180))<0.0000000001,0,$B3*COS($C3*PI()/180)) -> 100 | F3: 100 | G3: 0 | H3: =IF(ABS($F3*SIN($G3*PI()/180))<0.0000000001,0,$F3*SIN($G3*PI()/180)) -> 0 | I3: =IF(ABS($F3*COS($G3*PI()/180))<0.0000000001,0,$F3*COS($G3*PI()/180)) -> 100 | J3: =D3*H3+E3*I3 -> 10000 | L3: =(SQRT(2)/100)*$B$55*D3 -> 0 | M3: =(SQRT(2)/100)*$B$55*E3 -> 169.7056275 | N3: =(SQRT(2)/100)*$B$56*H3 -> 0 | O3: =(SQRT(2)/100)*$B$56*I3 -> 7.071067812
A4: 2 | B4: 0 | C4: 0 | D4: =IF(ABS($B4*SIN($C4*PI()/180))<0.0000000001,0,$B4*SIN($C4*PI()/180)) -> 0 | E4: =IF(ABS($B4*COS($C4*PI()/180))<0.0000000001,0,$B4*COS($C4*PI()/180)) -> 0 | F4: 0 | G4: 0 | H4: =IF(ABS($F4*SIN($G4*PI()/180))<0.0000000001,0,$F4*SIN($G4*PI()/180)) -> 0 | I4: =IF(ABS($F4*COS($G4*PI()/180))<0.0000000001,0,$F4*COS($G4*PI()/180)) -> 0 | J4: =D4*H4+E4*I4 -> 0 | L4: =(SQRT(2)/100)*$B$55*D4 -> 0 | M4: =(SQRT(2)/100)*$B$55*E4 -> 0 | N4: =(SQRT(2)/100)*$B$56*H4 -> 0 | O4: =(SQRT(2)/100)*$B$56*I4 -> 0
A5: 3 | B5: 3.8 | C5: 180 | D5: 0 | E5: -3.8 | F5: 30 | G5: 0 | H5: 0 | I5: 30 | J5: =D5*H5+E5*I5 -> -114 | L5: 0 | M5: -6.448813844 | N5: 0 | O5: 2.121320344
A6: 4 | B6: 0 | C6: 0 | D6: 0 | E6: 0 | F6: 0 | G6: 0 | H6: 0 | I6: 0 | J6: 0 | L6: 0 | M6: 0 | N6: 0 | O6: 0
A7: 5 | B7: 2.4 | C7: 180 | D7: 0 | E7: -2.4 | F7: 18 | G7: 0 | H7: 0 | I7: 18 | J7: -43.2 | L7: 0 | M7: -4.07293506 | N7: 0 | O7: 1.272792206
A8: 6 | B8: 0 | C8: 0 | D8: 0 | E8: 0 | F8: 0 | G8: 0 | H8: 0 | I8: 0 | J8: 0 | L8: 0 | M8: 0 | N8: 0 | O8: 0
A9: 7 | B9: 1.7 | C9: 180 | D9: 0 | E9: -1.7 | F9: 14 | G9: 0 | H9: 0 | I9: 14 | J9: -23.8 | L9: 0 | M9: -2.884995667 | N9: 0 | O9: 0.9899494937
A10: 8 | B10: 0 | C10: 0 | D10: 0 | E10: 0 | F10: 0 | G10: 0 | H10: 0 | I10: 0 | J10: 0 | L10: 0 | M10: 0 | N10: 0 | O10: 0
A11: 9 | B11: 0 | C11: 0 | D11: 0 | E11: 0 | F11: 0 | G11: 0 | H11: 0 | I11: 0 | J11: 0 | L11: 0 | M11: 0 | N11: 0 | O11: 0
A12: 10 | B12: 0 | C12: 0 | D12: 0 | E12: 0 | F12: 0 | G12: 0 | H12: 0 | I12: 0 | J12: 0 | L12: 0 | M12: 0 | N12: 0 | O12: 0
A13: 11 | B13: 1.1 | C13: 180 | D13: 0 | E13: -1.1 | F13: 9 | G13: 0 | H13: 0 | I13: 9 | J13: -9.9 | L13: 0 | M13: -1.866761902 | N13: 0 | O13: 0.6363961031
A14: 12 | B14: 0 | C14: 0 | D14: 0 | E14: 0 | F14: 0 | G14: 0 | H14: 0 | I14: 0 | J14: 0 | L14: 0 | M14: 0 | N14: 0 | O14: 0
A15: 13 | B15: 0.8 | C15: 180 | D15: 0 | E15: -0.8 | F15: 5 | G15: 0 | H15: 0 | I15: 5 | J15: -4 | L15: 0 | M15: -1.35764502 | N15: 0 | O15: 0.3535533906
A16: 14 | B16: 0 | C16: 0 | D16: 0 | E16: 0 | F16: 0 | G16: 0 | H16: 0 | I16: 0 | J16: =D16*H16+E16*I16 -> 0 | L16: 0 | M16: 0 | N16: 0 | O16: 0
A17: 15 | B17: 0 | C17: 0 | D17: 0 | E17: 0 | F17: 0 | G17: 0 | H17: 0 | I17: 0 | J17: 0 | L17: 0 | M17: 0 | N17: 0 | O17: 0
A18: 16 | B18: 0 | C18: 0 | D18: 0 | E18: 0 | F18: 0 | G18: 0 | H18: 0 | I18: 0 | J18: 0 | L18: 0 | M18: 0 | N18: 0 | O18: 0
A19: 17 | B19: 0 | C19: 0 | D19: 0 | E19: 0 | F19: 0 | G19: 0 | H19: 0 | I19: 0 | J19: 0 | L19: 0 | M19: 0 | N19: 0 | O19: 0
A20: 18 | B20: 0 | C20: 0 | D20: 0 | E20: 0 | F20: 0 | G20: 0 | H20: 0 | I20: 0 | J20: =D20*H20+E20*I20 -> 0 | L20: 0 | M20: 0 | N20: 0 | O20: 0
A21: 19 | B21: 0 | C21: 0 | D21: 0 | E21: 0 | F21: 0 | G21: 0 | H21: 0 | I21: 0 | J21: 0 | L21: 0 | M21: 0 | N21: 0 | O21: 0
A22: 20 | B22: 0 | C22: 0 | D22: 0 | E22: 0 | F22: 0 | G22: 0 | H22: 0 | I22: 0 | J22: 0 | L22: 0 | M22: 0 | N22: 0 | O22: 0
A23: 21 | B23: 0 | C23: 0 | D23: 0 | E23: 0 | F23: 0 | G23: 0 | H23: 0 | I23: 0 | J23: 0 | L23: 0 | M23: 0 | N23: 0 | O23: 0
A24: 22 | B24: 0 | C24: 0 | D24: 0 | E24: 0 | F24: 0 | G24: 0 | H24: 0 | I24: 0 | J24: 0 | L24: 0 | M24: 0 | N24: 0 | O24: 0
A25: 23 | B25: 0 | C25: 0 | D25: 0 | E25: 0 | F25: 0 | G25: 0 | H25: 0 | I25: 0 | J25: 0 | L25: 0 | M25: 0 | N25: 0 | O25: 0
A26: 24 | B26: 0 | C26: 0 | D26: 0 | E26: 0 | F26: 0 | G26: 0 | H26: 0 | I26: 0 | J26: 0 | L26: 0 | M26: 0 | N26: 0 | O26: 0
A27: 25 | B27: 0 | C27: 0 | D27: 0 | E27: 0 | F27: 0 | G27: 0 | H27: 0 | I27: 0 | J27: 0 | L27: 0 | M27: 0 | N27: 0 | O27: 0
A28: 26 | B28: 0 | C28: 0 | D28: 0 | E28: 0 | F28: 0 | G28: 0 | H28: 0 | I28: 0 | J28: 0 | L28: 0 | M28: 0 | N28: 0 | O28: 0
A29: 27 | B29: 0 | C29: 0 | D29: 0 | E29: 0 | F29: 0 | G29: 0 | H29: 0 | I29: 0 | J29: 0 | L29: 0 | M29: 0 | N29: 0 | O29: 0
A30: 28 | B30: 0 | C30: 0 | D30: 0 | E30: 0 | F30: 0 | G30: 0 | H30: 0 | I30: 0 | J30: 0 | L30: 0 | M30: 0 | N30: 0 | O30: 0
A31: 29 | B31: 0 | C31: 0 | D31: 0 | E31: 0 | F31: 0 | G31: 0 | H31: 0 | I31: 0 | J31: 0 | L31: 0 | M31: 0 | N31: 0 | O31: 0
A32: 30 | B32: 0 | C32: 0 | D32: 0 | E32: 0 | F32: 0 | G32: 0 | H32: 0 | I32: 0 | J32: 0 | L32: 0 | M32: 0 | N32: 0 | O32: 0
A33: 31 | B33: 0 | C33: 0 | D33: 0 | E33: 0 | F33: 0 | G33: 0 | H33: 0 | I33: 0 | J33: 0 | L33: 0 | M33: 0 | N33: 0 | O33: 0
A34: 32 | B34: 0 | C34: 0 | D34: 0 | E34: 0 | F34: 0 | G34: 0 | H34: 0 | I34: 0 | J34: 0 | L34: 0 | M34: 0 | N34: 0 | O34: 0
A35: 33 | B35: 0 | C35: 0 | D35: 0 | E35: 0 | F35: 0 | G35: 0 | H35: 0 | I35: 0 | J35: 0 | L35: 0 | M35: 0 | N35: 0 | O35: 0
A36: 34 | B36: 0 | C36: 0 | D36: 0 | E36: 0 | F36: 0 | G36: 0 | H36: 0 | I36: 0 | J36: 0 | L36: 0 | M36: 0 | N36: 0 | O36: 0
A37: 35 | B37: 0 | C37: 0 | D37: 0 | E37: 0 | F37: 0 | G37: 0 | H37: 0 | I37: 0 | J37: 0 | L37: 0 | M37: 0 | N37: 0 | O37: 0
A38: 36 | B38: 0 | C38: 0 | D38: 0 | E38: 0 | F38: 0 | G38: 0 | H38: 0 | I38: 0 | J38: 0 | L38: 0 | M38: 0 | N38: 0 | O38: 0
A39: 37 | B39: 0 | C39: 0 | D39: 0 | E39: 0 | F39: 0 | G39: 0 | H39: 0 | I39: 0 | J39: 0 | L39: 0 | M39: 0 | N39: 0 | O39: 0
A40: 38 | B40: 0 | C40: 0 | D40: 0 | E40: 0 | F40: 0 | G40: 0 | H40: 0 | I40: 0 | J40: 0 | L40: 0 | M40: 0 | N40: 0 | O40: 0
A41: 39 | B41: 0 | C41: 0 | D41: 0 | E41: 0 | F41: 0 | G41: 0 | H41: 0 | I41: 0 | J41: 0 | L41: 0 | M41: 0 | N41: 0 | O41: 0
A42: 40 | B42: 0 | C42: 0 | D42: 0 | E42: 0 | F42: 0 | G42: 0 | H42: 0 | I42: 0 | J42: 0 | L42: 0 | M42: 0 | N42: 0 | O42: 0
A43: 41 | B43: 0 | C43: 0 | D43: 0 | E43: 0 | F43: 0 | G43: 0 | H43: 0 | I43: 0 | J43: 0 | L43: 0 | M43: 0 | N43: 0 | O43: 0
A44: 42 | B44: 0 | C44: 0 | D44: 0 | E44: 0 | F44: 0 | G44: 0 | H44: 0 | I44: 0 | J44: 0 | L44: 0 | M44: 0 | N44: 0 | O44: 0
A45: 43 | B45: 0 | C45: 0 | D45: 0 | E45: 0 | F45: 0 | G45: 0 | H45: 0 | I45: 0 | J45: 0 | L45: 0 | M45: 0 | N45: 0 | O45: 0
A46: 44 | B46: 0 | C46: 0 | D46: 0 | E46: 0 | F46: 0 | G46: 0 | H46: 0 | I46: 0 | J46: 0 | L46: 0 | M46: 0 | N46: 0 | O46: 0
A47: 45 | B47: 0 | C47: 0 | D47: 0 | E47: 0 | F47: 0 | G47: 0 | H47: 0 | I47: 0 | J47: 0 | L47: 0 | M47: 0 | N47: 0 | O47: 0
A48: 46 | B48: 0 | C48: 0 | D48: 0 | E48: 0 | F48: 0 | G48: 0 | H48: 0 | I48: 0 | J48: 0 | L48: 0 | M48: 0 | N48: 0 | O48: 0
A49: 47 | B49: 0 | C49: 0 | D49: 0 | E49: 0 | F49: 0 | G49: 0 | H49: 0 | I49: 0 | J49: 0 | L49: 0 | M49: 0 | N49: 0 | O49: 0
A50: 48 | B50: 0 | C50: 0 | D50: 0 | E50: 0 | F50: 0 | G50: 0 | H50: 0 | I50: 0 | J50: 0 | L50: 0 | M50: 0 | N50: 0 | O50: 0
A51: 49 | B51: 0 | C51: 0 | D51: 0 | E51: 0 | F51: 0 | G51: 0 | H51: 0 | I51: 0 | J51: 0 | L51: 0 | M51: 0 | N51: 0 | O51: 0
A52: 50 | B52: 0 | C52: 0 | D52: 0 | E52: 0 | F52: 0 | G52: 0 | H52: 0 | I52: 0 | J52: 0 | L52: 0 | M52: 0 | N52: 0 | O52: 0
H54: Total Energy | J54: =SUM(J3:J52)/J3 -> 0.98051
A55: Vref | B55: 120 | H55: Time Domain (Square Integration) | L55: Frequency Domain | P55: (TD-FD)/FD
A56: Iref | B56: 5 | H56: Vrms | J56: =SQRT(SqIntegral(Waveforms!$G$2:$G$514)/512) -> 120.1495469 | L56: Vrms | O56: =CRMS($L$3:$M$52) -> 120.1495468 | P56: % Diff | Q56: =(J56-O56)/(O56) -> 5.713283087e-10
H57: Irms | J57: =SQRT(SqIntegral(Waveforms!$H$2:$H$514)/512) -> 5.36796051 | L57: Irms | O57: =CRMS($N$3:$O$52) -> 5.367960507 | P57: % Diff | Q57: =(J57-O57)/(O57) -> 5.706015842e-10
H58: Active Power (Pt) | J58: =SqIntegral(Waveforms!$I$2:$I$514)/512 -> 588.3060007 | L58: Active Power (Pf) | O58: =CPWR($L$3:$M$52,$N$3:$O$52) -> 588.306 | P58: % Diff | Q58: 1.142534303e-09
H59: Reactive Power (Qt) | J59: =SQRT($J$60*$J$60-$J$58*$J$58) -> 264.3234778 | L59: Reactive Power (Qf) | O59: =CVARS($L$3:$M$52,$N$3:$O$52) -> 0 | P59: % Diff | Q59: =(J59-ABS(O59))/ABS(O59) -> 
H60: Apparent Power (St) | J60: =J56*J57 -> 644.9580229 | L60: Apparent Power (Sf) | O60: =CVA($L$3:$M$52,$N$3:$O$52) -> 644.9580222 | P60: % Diff | Q60: 1.141930111e-09
H62: Time Domain (Trapazoidal Integration) | L62: Frequency Domain | P62: (TD-FD)/FD
H63: Vrms | J63: =SQRT(TpzIntegral(Waveforms!$G$2:$G$514)/512) -> 120.1495469 | L63: Vrms | O63: =CRMS($L$3:$M$52) -> 120.1495468 | P63: % Diff | Q63: =(J63-O63)/(O63) -> 5.713283087e-10
H64: Irms | J64: =SQRT(TpzIntegral(Waveforms!$H$2:$H$514)/512) -> 5.36796051 | L64: Irms | O64: =CRMS($N$3:$O$52) -> 5.367960507 | P64: % Diff | Q64: 5.706015842e-10
H65: Active Power (Pt) | J65: =TpzIntegral(Waveforms!$I$2:$I$514)/512 -> 588.3060007 | L65: Active Power (Pf) | O65: =CPWR($L$3:$M$52,$N$3:$O$52) -> 588.306 | P65: % Diff | Q65: 1.142534303e-09
H66: Reactive Power (Qt) | J66: =SQRT($J$67*$J$67-$J$65*$J$65) -> 264.3234778 | L66: Reactive Power (Qf) | O66: =CVARS($L$3:$M$52,$N$3:$O$52) -> 0 | P66: % Diff | Q66: =(J66-ABS(O66))/ABS(O66) -> 
H67: Apparent Power (St) | J67: =J63*J64 -> 644.9580229 | L67: Apparent Power (Sf) | O67: =CVA($L$3:$M$52,$N$3:$O$52) -> 644.9580222 | P67: % Diff | Q67: 1.141930111e-09
H69: Time Domain (Quadratic Integration) | L69: Frequency Domain | P69: (TD-FD)/FD
H70: Vrms | J70: =SQRT(QuadIntegral(Waveforms!$G$2:$G$514)/512) -> 120.1495298 | L70: Vrms | O70: =CRMS($L$3:$M$52) -> 120.1495468 | P70: % Diff | Q70: =(J70-O70)/(O70) -> -1.414904286e-07
H71: Irms | J71: =SQRT(QuadIntegral(Waveforms!$H$2:$H$514)/512) -> 5.367854418 | L71: Irms | O71: =CRMS($N$3:$O$52) -> 5.367960507 | P71: % Diff | Q71: -1.976322923e-05
H72: Active Power (Pt) | J72: =QuadIntegral(Waveforms!$I$2:$I$514)/512 -> 588.3038393 | L72: Active Power (Pf) | O72: =CPWR($L$3:$M$52,$N$3:$O$52) -> 588.306 | P72: % Diff | Q72: -3.672778522e-06
H73: Reactive Power (Qt) | J73: =SQRT($J$74*$J$74-$J$72*$J$72) -> 264.2969611 | L73: Reactive Power (Qf) | O73: =CVARS($L$3:$M$52,$N$3:$O$52) -> 0 | P73: % Diff | Q73: =(J73-ABS(O73))/ABS(O73) -> 
H74: Apparent Power (St) | J74: =J70*J71 -> 644.9451845 | L74: Apparent Power (Sf) | O74: =CVA($L$3:$M$52,$N$3:$O$52) -> 644.9580222 | P74: % Diff | Q74: -1.990471686e-05

Sheet Waveforms
A1: Index | B1: Degrees | C1: Radians | D1: Voltage | E1: Current | G1: V^2 | H1: I^2 | I1: Pt
A2: 0 | B2: =360*A2/512 -> 0 | C2: =B2*PI()/180 -> 0 | D2: =Cwavepoint(Parms!$L$3:$M$52,Waveforms!$A2,512) -> 0 | E2: =Cwavepoint(Parms!$N$3:$O$52,Waveforms!$A2,512) -> 0 | G2: =D2*D2 -> 0 | H2: =E2*E2 -> 0 | I2: =D2*E2 -> 0
A3: =A2+1 -> 1 | B3: =360*A3/512 -> 0.703125 | C3: =B3*PI()/180 -> 0.0122718463 | D3: =Cwavepoint(Parms!$L$3:$M$52,Waveforms!$A3,512) -> 0.8810028174 | E3: =Cwavepoint(Parms!$N$3:$O$52,Waveforms!$A3,512) -> 0.4696478244 | G3: =D3*D3 -> 0.7761659642 | H3: =E3*E3 -> 0.220569079 | I3: =D3*E3 -> 0.4137610565
A4: =A3+1 -> 2 | B4: 1.40625 | C4: 0.02454369261 | D4: =Cwavepoint(Parms!$L$3:$M$52,Waveforms!$A4,512) -> 1.774827701 | E4: =Cwavepoint(Parms!$N$3:$O$52,Waveforms!$A4,512) -> 0.9352718863 | G4: 3.150013369 | H4: 0.8747335013 | I4: 1.659946452
A5: 3 | B5: 2.109375 | C5: 0.03681553891 | D5: =Cwavepoint(Parms!$L$3:$M$52,Waveforms!$A5,512) -> 2.694057047 | E5: =Cwavepoint(Parms!$N$3:$O$52,Waveforms!$A5,512) -> 1.392918874 | G5: 7.257943375 | H5: 1.940222989 | I5: 3.752602908
A6: 4 | B6: 2.8125 | C6: 0.04908738521 | D6: =Cwavepoint(Parms!$L$3:$M$52,Waveforms!$A6,512) -> 3.65079907 | E6: =Cwavepoint(Parms!$N$3:$O$52,Waveforms!$A6,512) -> 1.838774902 | G6: 13.32833385 | H6: 3.38109314 | I6: 6.712997701
A7: 5 | B7: 3.515625 | C7: 0.06135923152 | D7: =Cwavepoint(Parms!$L$3:$M$52,Waveforms!$A7,512) -> 4.656463489 | E7: =Cwavepoint(Parms!$N$3:$O$52,Waveforms!$A7,512) -> 2.269231574 | G7: 21.68265223 | H7: 5.149411937 | I7: 10.56659397
A8: 6 | B8: 4.21875 | C8: 0.07363107782 | D8: =Cwavepoint(Parms!$L$3:$M$52,Waveforms!$A8,512) -> 5.721552235 | E8: =Cwavepoint(Parms!$N$3:$O$52,Waveforms!$A8,512) -> 2.68094775 | G8: 32.73615997 | H8: 7.187480841 | I8: 15.33918259
A9: 7 | B9: 4.921875 | C9: 0.08590292412 | D9: =Cwavepoint(Parms!$L$3:$M$52,Waveforms!$A9,512) -> 6.855469612 | E9: =Cwavepoint(Parms!$N$3:$O$52,Waveforms!$A9,512) -> 3.070905744 | G9: 46.99746361 | H9: 9.430462091 | I9: 21.05250101
A10: 8 | B10: 5.625 | C10: 0.09817477042 | D10: =Cwavepoint(Parms!$L$3:$M$52,Waveforms!$A10,512) -> 8.066355976 | E10: =Cwavepoint(Parms!$N$3:$O$52,Waveforms!$A10,512) -> 3.436460793 | G10: 65.06609873 | H10: 11.80926278 | I10: 27.71971606
A11: 9 | B11: 6.328125 | C11: 0.1104466167 | D11: =Cwavepoint(Parms!$L$3:$M$52,Waveforms!$A11,512) -> 9.360948373 | E11: =Cwavepoint(Parms!$N$3:$O$52,Waveforms!$A11,512) -> 3.775382794 | G11: 87.62735444 | H11: 14.25351524 | I11: 35.34116343
A12: 10 | B12: 7.03125 | C12: 0.122718463 | D12: =Cwavepoint(Parms!$L$3:$M$52,Waveforms!$A12,512) -> 10.74447104 | E12: =Cwavepoint(Parms!$N$3:$O$52,Waveforms!$A12,512) -> 4.085889477 | G12: 115.4436578 | H12: 16.69449282 | I12: 43.90072114
A13: 11 | B13: 7.734375 | C13: 0.1349903093 | D13: =Cwavepoint(Parms!$L$3:$M$52,Waveforms!$A13,512) -> 12.22055792 | E13: =Cwavepoint(Parms!$N$3:$O$52,Waveforms!$A13,512) -> 4.366670364 | G13: 149.342036 | H13: 19.06781007 | I13: 53.36314812
A14: 12 | B14: 8.4375 | C14: 0.1472621556 | D14: =Cwavepoint(Parms!$L$3:$M$52,Waveforms!$A14,512) -> 13.79120876 | E14: =Cwavepoint(Parms!$N$3:$O$52,Waveforms!$A14,512) -> 4.616901089 | G14: 190.197439 | H14: 21.31577567 | I14: 63.67264673
A15: 13 | B15: 9.140625 | C15: 0.1595340019 | D15: =Cwavepoint(Parms!$L$3:$M$52,Waveforms!$A15,512) -> 15.45677927 | E15: =Cwavepoint(Parms!$N$3:$O$52,Waveforms!$A15,512) -> 4.836247839 | G15: 238.9120255 | H15: 23.38929316 | I15: 74.75281536
A16: 14 | B16: 9.84375 | C16: 0.1718058482 | D16: =Cwavepoint(Parms!$L$3:$M$52,Waveforms!$A16,512) -> 17.21600562 | E16: =Cwavepoint(Parms!$N$3:$O$52,Waveforms!$A16,512) -> 5.024861922 | G16: 296.3908495 | H16: 25.24923733 | I16: 86.50805108
A17: 15 | B17: 10.546875 | C17: 0.1840776945 | D17: =Cwavepoint(Parms!$L$3:$M$52,Waveforms!$A17,512) -> 19.06606207 | E17: =Cwavepoint(Parms!$N$3:$O$52,Waveforms!$A17,512) -> 5.183364658 | G17: 363.5147229 | H17: 26.86726917 | I17: 98.8263523
A18: 16 | B18: 11.25 | C18: 0.1963495408 | D18: =Cwavepoint(Parms!$L$3:$M$52,Waveforms!$A18,512) -> 21.00265049 | E18: =Cwavepoint(Parms!$N$3:$O$52,Waveforms!$A18,512) -> 5.312823026 | G18: 441.1113277 | H18: 28.22608851 | I18: 111.5833652
A19: 17 | B19: 11.953125 | C19: 0.2086213872 | D19: =Cwavepoint(Parms!$L$3:$M$52,Waveforms!$A19,512) -> 23.02011925 | E19: =Cwavepoint(Parms!$N$3:$O$52,Waveforms!$A19,512) -> 5.414716681 | G19: 529.9258901 | H19: 29.31915673 | I19: 124.6474237
A20: 18 | B20: 12.65625 | C20: 0.2208932335 | D20: =Cwavepoint(Parms!$L$3:$M$52,Waveforms!$A20,512) -> 25.11160864 | E20: =Cwavepoint(Parms!$N$3:$O$52,Waveforms!$A20,512) -> 5.490897134 | G20: 630.5928886 | H20: 30.14995134 | I20: 137.8852599
A21: 19 | B21: 13.359375 | C21: 0.2331650798 | D21: =Cwavepoint(Parms!$L$3:$M$52,Waveforms!$A21,512) -> 27.26921943 | E21: =Cwavepoint(Parms!$N$3:$O$52,Waveforms!$A21,512) -> 5.543540101 | G21: 743.6103284 | H21: 30.73083685 | I21: 151.1680114
A22: 20 | B22: 14.0625 | C22: 0.2454369261 | D22: =Cwavepoint(Parms!$L$3:$M$52,Waveforms!$A22,512) -> 29.48420031 | E22: =Cwavepoint(Parms!$N$3:$O$52,Waveforms!$A22,512) -> 5.575092087 | G22: 869.3180677 | H22: 31.08165178 | I22: 164.3771318
A23: 21 | B23: 14.765625 | C23: 0.2577087724 | D23: =Cwavepoint(Parms!$L$3:$M$52,Waveforms!$A23,512) -> 31.74715005 | E23: =Cwavepoint(Parms!$N$3:$O$52,Waveforms!$A23,512) -> 5.58821248 | G23: 1007.881537 | H23: 31.22811872 | I23: 177.4098201
A24: 22 | B24: 15.46875 | C24: 0.2699806187 | D24: =Cwavepoint(Parms!$L$3:$M$52,Waveforms!$A24,512) -> 34.04822966 | E24: =Cwavepoint(Parms!$N$3:$O$52,Waveforms!$A24,512) -> 5.585712443 | G24: 1159.281943 | H24: 31.2001835 | I24: 190.18362
A25: 23 | B25: 16.171875 | C25: 0.282252465 | D25: =Cwavepoint(Parms!$L$3:$M$52,Waveforms!$A25,512) -> 36.37737946 | E25: =Cwavepoint(Parms!$N$3:$O$52,Waveforms!$A25,512) -> 5.570491998 | G25: 1323.313736 | H25: 31.03038109 | I25: 202.6399012
A26: 24 | B26: 16.875 | C26: 0.2945243113 | D26: =Cwavepoint(Parms!$L$3:$M$52,Waveforms!$A26,512) -> 38.72453648 | E26: =Cwavepoint(Parms!$N$3:$O$52,Waveforms!$A26,512) -> 5.545476689 | G26: 1499.589726 | H26: 30.75231171 | I26: 214.7460143
A27: 25 | B27: 17.578125 | C27: 0.3067961576 | D27: =Cwavepoint(Parms!$L$3:$M$52,Waveforms!$A27,512) -> 41.07984697 | E27: =Cwavepoint(Parms!$N$3:$O$52,Waveforms!$A27,512) -> 5.513555237 | G27: 1687.553827 | H27: 30.39929136 | I27: 226.4960054
A28: 26 | B28: 18.28125 | C28: 0.3190680039 | D28: =Cwavepoint(Parms!$L$3:$M$52,Waveforms!$A28,512) -> 43.43386944 | E28: =Cwavepoint(Parms!$N$3:$O$52,Waveforms!$A28,512) -> 5.477519526 | G28: 1886.501014 | H28: 30.00322016 | I28: 237.9098679
A29: 27 | B29: 18.984375 | C29: 0.3313398502 | D29: =Cwavepoint(Parms!$L$3:$M$52,Waveforms!$A29,512) -> 45.77776377 | E29: =Cwavepoint(Parms!$N$3:$O$52,Waveforms!$A29,512) -> 5.440008218 | G29: 2095.603656 | H29: 29.59368941 | I29: 249.0314111
A30: 28 | B30: 19.6875 | C30: 0.3436116965 | D30: =Cwavepoint(Parms!$L$3:$M$52,Waveforms!$A30,512) -> 48.10346226 | E30: =Cwavepoint(Parms!$N$3:$O$52,Waveforms!$A30,512) -> 5.403455194 | G30: 2313.943081 | H30: 29.19732804 | I30: 259.924903
A31: 29 | B31: 20.390625 | C31: 0.3558835428 | D31: =Cwavepoint(Parms!$L$3:$M$52,Waveforms!$A31,512) -> 50.40381891 | E31: =Cwavepoint(Parms!$N$3:$O$52,Waveforms!$A31,512) -> 5.370043877 | G31: 2540.544961 | H31: 28.83737124 | I31: 270.6707191
A32: 30 | B32: 21.09375 | C32: 0.3681553891 | D32: =Cwavepoint(Parms!$L$3:$M$52,Waveforms!$A32,512) -> 52.67273404 | E32: =Cwavepoint(Parms!$N$3:$O$52,Waveforms!$A32,512) -> 5.341668362 | G32: 2774.416911 | H32: 28.53342089 | I32: 281.360277
A33: 31 | B33: 21.796875 | C33: 0.3804272354 | D33: =Cwavepoint(Parms!$L$3:$M$52,Waveforms!$A33,512) -> 54.90525152 | E33: =Cwavepoint(Parms!$N$3:$O$52,Waveforms!$A33,512) -> 5.319902117 | G33: 3014.586644 | H33: 28.30135853 | I33: 292.0905638
A34: 32 | B34: 22.5 | C34: 0.3926990817 | D34: =Cwavepoint(Parms!$L$3:$M$52,Waveforms!$A34,512) -> 57.097627 | E34: =Cwavepoint(Parms!$N$3:$O$52,Waveforms!$A34,512) -> 5.305974811 | G34: 3260.139008 | H34: 28.1533687 | I34: 302.9585706
A35: 33 | B35: 23.203125 | C35: 0.404970928 | D35: =Cwavepoint(Parms!$L$3:$M$52,Waveforms!$A35,512) -> 59.24736589 | E35: =Cwavepoint(Parms!$N$3:$O$52,Waveforms!$A35,512) -> 5.300757667 | G35: 3510.250364 | H35: 28.09803184 | I35: 314.055929
A36: 34 | B36: 23.90625 | C36: 0.4172427743 | D36: =Cwavepoint(Parms!$L$3:$M$52,Waveforms!$A36,512) -> 61.35323078 | E36: =Cwavepoint(Parms!$N$3:$O$52,Waveforms!$A36,512) -> 5.304757497 | G36: 3764.218927 | H36: 28.1404521 | I36: 325.4640109
A37: 35 | B37: 24.609375 | C37: 0.4295146206 | D37: =Cwavepoint(Parms!$L$3:$M$52,Waveforms!$A37,512) -> 63.41521856 | E37: =Cwavepoint(Parms!$N$3:$O$52,Waveforms!$A37,512) -> 5.318119425 | G37: 4021.489945 | H37: 28.28239422 | I37: 337.2497057
A38: 36 | B38: 25.3125 | C38: 0.4417864669 | D38: =Cwavepoint(Parms!$L$3:$M$52,Waveforms!$A38,512) -> 65.43450827 | E38: =Cwavepoint(Parms!$N$3:$O$52,Waveforms!$A38,512) -> 5.34063805 | G38: 4281.674872 | H38: 28.52241478 | I38: 349.4620246
A39: 37 | B39: 26.015625 | C39: 0.4540583132 | D39: =Cwavepoint(Parms!$L$3:$M$52,Waveforms!$A39,512) -> 67.41338144 | E39: =Cwavepoint(Parms!$N$3:$O$52,Waveforms!$A39,512) -> 5.371776653 | G39: 4544.563997 | H39: 28.85598441 | I39: 362.1296285
A40: 38 | B40: 26.71875 | C40: 0.4663301595 | D40: =Cwavepoint(Parms!$L$3:$M$52,Waveforms!$A40,512) -> 69.35511722 | E40: =Cwavepoint(Parms!$N$3:$O$52,Waveforms!$A40,512) -> 5.41069385 | G40: 4810.132285 | H40: 29.27560794 | I40: 375.2593062
A41: 39 | B41: 27.421875 | C41: 0.4786020058 | D41: =Cwavepoint(Parms!$L$3:$M$52,Waveforms!$A41,512) -> 71.2638652 | E41: =Cwavepoint(Parms!$N$3:$O$52,Waveforms!$A41,512) -> 5.456276934 | G41: 5078.538483 | H41: 29.77095798 | I41: 388.8353839
A42: 40 | B42: 28.125 | C42: 0.4908738521 | D42: =Cwavepoint(Parms!$L$3:$M$52,Waveforms!$A42,512) -> 73.14449926 | E42: =Cwavepoint(Parms!$N$3:$O$52,Waveforms!$A42,512) -> 5.507181007 | G42: 5350.117772 | H42: 30.32904264 | I42: 402.8199971
A43: 41 | B43: 28.828125 | C43: 0.5031456984 | D43: =Cwavepoint(Parms!$L$3:$M$52,Waveforms!$A43,512) -> 75.0024564 | E43: =Cwavepoint(Parms!$N$3:$O$52,Waveforms!$A43,512) -> 5.56187288 | G43: 5625.368465 | H43: 30.93442994 | I43: 417.1541282
A44: 42 | B44: 29.53125 | C44: 0.5154175447 | D44: =Cwavepoint(Parms!$L$3:$M$52,Waveforms!$A44,512) -> 76.84356445 | E44: =Cwavepoint(Parms!$N$3:$O$52,Waveforms!$A44,512) -> 5.618678625 | G44: 5904.933397 | H44: 31.56954949 | I44: 431.759293
A45: 43 | B45: 30.234375 | C45: 0.527689391 | D45: =Cwavepoint(Parms!$L$3:$M$52,Waveforms!$A45,512) -> 78.67386316 | E45: =Cwavepoint(Parms!$N$3:$O$52,Waveforms!$A45,512) -> 5.67583358 | G45: 6189.576744 | H45: 32.21508683 | I45: 446.5397544
A46: 44 | B46: 30.9375 | C46: 0.5399612373 | D46: =Cwavepoint(Parms!$L$3:$M$52,Waveforms!$A46,512) -> 80.49942299 | E46: =Cwavepoint(Parms!$N$3:$O$52,Waveforms!$A46,512) -> 5.731533605 | G46: 6480.157102 | H46: 32.85047747 | I46: 461.3851481
A47: 45 | B47: 31.640625 | C47: 0.5522330836 | D47: =Cwavepoint(Parms!$L$3:$M$52,Waveforms!$A47,512) -> 82.32616606 | E47: =Cwavepoint(Parms!$N$3:$O$52,Waveforms!$A47,512) -> 5.783986318 | G47: 6777.597618 | H47: 33.45449773 | I47: 476.1734181
A48: 46 | B48: 32.34375 | C48: 0.5645049299 | D48: =Cwavepoint(Parms!$L$3:$M$52,Waveforms!$A48,512) -> 84.15969352 | E48: =Cwavepoint(Parms!$N$3:$O$52,Waveforms!$A48,512) -> 5.83146112 | G48: 7082.854013 | H48: 34.00593879 | I48: 490.7739806
A49: 47 | B49: 33.046875 | C49: 0.5767767762 | D49: =Cwavepoint(Parms!$L$3:$M$52,Waveforms!$A49,512) -> 86.00512358 | E49: =Cwavepoint(Parms!$N$3:$O$52,Waveforms!$A49,512) -> 5.872336819 | G49: 7396.881281 | H49: 34.48433971 | I49: 505.0510538
A50: 48 | B50: 33.75 | C50: 0.5890486225 | D50: =Cwavepoint(Parms!$L$3:$M$52,Waveforms!$A50,512) -> 87.86694379 | E50: =Cwavepoint(Parms!$N$3:$O$52,Waveforms!$A50,512) -> 5.90514576 | G50: 7720.599812 | H50: 34.87074645 | I50: 518.8671106
A51: 49 | B51: 34.453125 | C51: 0.6013204689 | D51: =Cwavepoint(Parms!$L$3:$M$52,Waveforms!$A51,512) -> 89.74888122 | E51: =Cwavepoint(Parms!$N$3:$O$52,Waveforms!$A51,512) -> 5.92861346 | G51: 8054.86168 | H51: 35.14845756 | I51: 532.0864252
A52: 50 | B52: 35.15625 | C52: 0.6135923152 | D52: =Cwavepoint(Parms!$L$3:$M$52,Waveforms!$A52,512) -> 91.65379319 | E52: =Cwavepoint(Parms!$N$3:$O$52,Waveforms!$A52,512) -> 5.941692864 | G52: 8400.417805 | H52: 35.30371409 | I52: 544.5786889
A53: 51 | B53: 35.859375 | C53: 0.6258641615 | D53: =Cwavepoint(Parms!$L$3:$M$52,Waveforms!$A53,512) -> 93.58358123 | E53: =Cwavepoint(Parms!$N$3:$O$52,Waveforms!$A53,512) -> 5.943592483 | G53: 8757.886676 | H53: 35.3262916 | I53: 556.2226699
A54: 52 | B54: 36.5625 | C54: 0.6381360078 | D54: =Cwavepoint(Parms!$L$3:$M$52,Waveforms!$A54,512) -> 95.53912992 | E54: =Cwavepoint(Parms!$N$3:$O$52,Waveforms!$A54,512) -> 5.933797838 | G54: 9127.725346 | H54: 35.20995679 | I54: 566.9098826
A55: 53 | B55: 37.265625 | C55: 0.6504078541 | D55: =Cwavepoint(Parms!$L$3:$M$52,Waveforms!$A55,512) -> 97.52027179 | E55: =Cwavepoint(Parms!$N$3:$O$52,Waveforms!$A55,512) -> 5.912085778 | G55: 9510.20341 | H55: 34.95275825 | I55: 576.5482119
A56: 54 | B56: 37.96875 | C56: 0.6626797004 | D56: =Cwavepoint(Parms!$L$3:$M$52,Waveforms!$A56,512) -> 99.5257789 | E56: =Cwavepoint(Parms!$N$3:$O$52,Waveforms!$A56,512) -> 5.878531439 | G56: 9905.380665 | H56: 34.55713188 | I56: 585.0654202
A57: 55 | B57: 38.671875 | C57: 0.6749515467 | D57: =Cwavepoint(Parms!$L$3:$M$52,Waveforms!$A57,512) -> 101.553381 | E57: =Cwavepoint(Parms!$N$3:$O$52,Waveforms!$A57,512) -> 5.833507775 | G57: 10313.08918 | H57: 34.02981296 | I57: 592.4124374
A58: 56 | B58: 39.375 | C58: 0.687223393 | D58: =Cwavepoint(Parms!$L$3:$M$52,Waveforms!$A58,512) -> 103.5998092 | E58: =Cwavepoint(Parms!$N$3:$O$52,Waveforms!$A58,512) -> 5.777677779 | G58: 10732.92047 | H58: 33.38156052 | I58: 598.5663158
A59: 57 | B59: 40.078125 | C59: 0.6994952393 | D59: =Cwavepoint(Parms!$L$3:$M$52,Waveforms!$A59,512) -> 105.6608649 | E59: =Cwavepoint(Parms!$N$3:$O$52,Waveforms!$A59,512) -> 5.711979671 | G59: 11164.21837 | H59: 32.62671177 | I59: 603.5327123
A60: 58 | B60: 40.78125 | C60: 0.7117670856 | D60: =Cwavepoint(Parms!$L$3:$M$52,Waveforms!$A60,512) -> 107.7315098 | E60: =Cwavepoint(Parms!$N$3:$O$52,Waveforms!$A60,512) -> 5.637605499 | G60: 11606.0782 | H60: 31.78259577 | I60: 607.3477519
A61: 59 | B61: 41.484375 | C61: 0.7240389319 | D61: =Cwavepoint(Parms!$L$3:$M$52,Waveforms!$A61,512) -> 109.8059773 | E61: =Cwavepoint(Parms!$N$3:$O$52,Waveforms!$A61,512) -> 5.555973756 | G61: 12057.35266 | H61: 30.86884438 | I61: 610.0791283
A62: 60 | B62: 42.1875 | C62: 0.7363107782 | D62: =Cwavepoint(Parms!$L$3:$M$52,Waveforms!$A62,512) -> 111.8779006 | E62: =Cwavepoint(Parms!$N$3:$O$52,Waveforms!$A62,512) -> 5.468696736 | G62: 12516.66465 | H62: 29.90664399 | I62: 611.82631
A63: 61 | B63: 42.890625 | C63: 0.7485826245 | D63: =Cwavepoint(Parms!$L$3:$M$52,Waveforms!$A63,512) -> 113.9404542 | E63: =Cwavepoint(Parms!$N$3:$O$52,Waveforms!$A63,512) -> 5.377543474 | G63: 12982.4271 | H63: 28.91797381 | I63: 612.7197457
A64: 62 | B64: 43.59375 | C64: 0.7608544708 | D64: =Cwavepoint(Parms!$L$3:$M$52,Waveforms!$A64,512) -> 115.9865061 | E64: =Cwavepoint(Parms!$N$3:$O$52,Waveforms!$A64,512) -> 5.284399203 | G64: 13452.86959 | H64: 27.92487494 | I64: 612.9190003
A65: 63 | B65: 44.296875 | C65: 0.7731263171 | D65: =Cwavepoint(Parms!$L$3:$M$52,Waveforms!$A65,512) -> 118.0087767 | E65: =Cwavepoint(Parms!$N$3:$O$52,Waveforms!$A65,512) -> 5.191222336 | G65: 13926.07138 | H65: 26.94878934 | I65: 612.6097974
A66: 64 | B66: 45 | C66: 0.7853981634 | D66: =Cwavepoint(Parms!$L$3:$M$52,Waveforms!$A66,512) -> 119.9999999 | E66: =Cwavepoint(Parms!$N$3:$O$52,Waveforms!$A66,512) -> 5.100000007 | G66: 14399.99997 | H66: 26.01000007 | I66: 612.0000001
A67: 65 | B67: =360*A67/512 -> 45.703125 | C67: =B67*PI()/180 -> 0.7976700097 | D67: =Cwavepoint(Parms!$L$3:$M$52,Waveforms!$A67,512) -> 121.9530829 | E67: =Cwavepoint(Parms!$N$3:$O$52,Waveforms!$A67,512) -> 5.012703252 | G67: =D67*D67 -> 14872.55442 | H67: =E67*E67 -> 25.12719389 | I67: =D67*E67 -> 611.3146151
A68: =A67+1 -> 66 | B68: 46.40625 | C68: 0.809941856 | D68: =Cwavepoint(Parms!$L$3:$M$52,Waveforms!$A68,512) -> 123.8612614 | E68: =Cwavepoint(Parms!$N$3:$O$52,Waveforms!$A68,512) -> 4.931242874 | G68: 15341.61206 | H68: 24.31715628 | I68: 610.7899624
A69: 67 | B69: 47.109375 | C69: 0.8222137023 | D69: =Cwavepoint(Parms!$L$3:$M$52,Waveforms!$A69,512) -> 125.7182454 | E69: =Cwavepoint(Parms!$N$3:$O$52,Waveforms!$A69,512) -> 4.857427014 | G69: 15805.07722 | H69: 23.59459719 | I69: 610.6672012
A70: 68 | B70: 47.8125 | C70: 0.8344855486 | D70: =Cwavepoint(Parms!$L$3:$M$52,Waveforms!$A70,512) -> 127.5183535 | E70: =Cwavepoint(Parms!$N$3:$O$52,Waveforms!$A70,512) -> 4.792921403 | G70: 16260.93049 | H70: 22.97209558 | I70: 611.185446
A71: 69 | B71: 48.515625 | C71: 0.8467573949 | D71: =Cwavepoint(Parms!$L$3:$M$52,Waveforms!$A71,512) -> 129.2566317 | E71: =Cwavepoint(Parms!$N$3:$O$52,Waveforms!$A71,512) -> 4.739213177 | G71: 16707.27684 | H71: 22.46014153 | I71: 612.5747322
A72: 70 | B72: 49.21875 | C72: 0.8590292412 | D72: =Cwavepoint(Parms!$L$3:$M$52,Waveforms!$A72,512) -> 130.9289543 | E72: =Cwavepoint(Parms!$N$3:$O$52,Waveforms!$A72,512) -> 4.697579035 | G72: 17142.39107 | H72: 22.06724879 | I72: 615.0491106
A73: 71 | B73: 49.921875 | C73: 0.8713010875 | D73: =Cwavepoint(Parms!$L$3:$M$52,Waveforms!$A73,512) -> 132.5321051 | E73: =Cwavepoint(Parms!$N$3:$O$52,Waveforms!$A73,512) -> 4.669058429 | G73: 17564.75889 | H73: 21.80010661 | I73: 618.8001426
A74: 72 | B74: 50.625 | C74: 0.8835729338 | D74: =Cwavepoint(Parms!$L$3:$M$52,Waveforms!$A74,512) -> 134.0638374 | E74: =Cwavepoint(Parms!$N$3:$O$52,Waveforms!$A74,512) -> 4.654432313 | G74: 17973.11249 | H74: 21.66374016 | I74: 623.9910567
A75: 73 | B75: 51.328125 | C75: 0.8958447801 | D75: =Cwavepoint(Parms!$L$3:$M$52,Waveforms!$A75,512) -> 135.5229101 | E75: =Cwavepoint(Parms!$N$3:$O$52,Waveforms!$A75,512) -> 4.654207859 | G75: 18366.45916 | H75: 21.6616508 | I75: 630.7517933
A76: 74 | B76: 52.03125 | C76: 0.9081166264 | D76: =Cwavepoint(Parms!$L$3:$M$52,Waveforms!$A76,512) -> 136.9091021 | E76: =Cwavepoint(Parms!$N$3:$O$52,Waveforms!$A76,512) -> 4.668609391 | G76: 18744.10225 | H76: 21.79591365 | I76: 639.1751199
A77: 75 | B77: 52.734375 | C77: 0.9203884727 | D77: =Cwavepoint(Parms!$L$3:$M$52,Waveforms!$A77,512) -> 138.2232024 | E77: =Cwavepoint(Parms!$N$3:$O$52,Waveforms!$A77,512) -> 4.697575643 | G77: 19105.65367 | H77: 22.06721692 | I77: 649.3139487
A78: 76 | B78: 53.4375 | C78: 0.932660319 | D78: =Cwavepoint(Parms!$L$3:$M$52,Waveforms!$A78,512) -> 139.4669777 | E78: =Cwavepoint(Parms!$N$3:$O$52,Waveforms!$A78,512) -> 4.740763289 | G78: 19451.03787 | H78: 22.47483657 | I78: 661.179928
A79: 77 | B79: 54.140625 | C79: 0.9449321653 | D79: =Cwavepoint(Parms!$L$3:$M$52,Waveforms!$A79,512) -> 140.6431195 | E79: =Cwavepoint(Parms!$N$3:$O$52,Waveforms!$A79,512) -> 4.797556558 | G79: 19780.48706 | H79: 23.01654893 | I79: 674.7433203
A80: 78 | B80: 54.84375 | C80: 0.9572040116 | D80: =Cwavepoint(Parms!$L$3:$M$52,Waveforms!$A80,512) -> 141.7551699 | E80: =Cwavepoint(Parms!$N$3:$O$52,Waveforms!$A80,512) -> 4.867082587 | G80: 20094.52819 | H80: 23.68849291 | I80: 689.9341189
A81: 79 | B81: 55.546875 | C81: 0.9694758579 | D81: =Cwavepoint(Parms!$L$3:$M$52,Waveforms!$A81,512) -> 142.8074308 | E81: =Cwavepoint(Parms!$N$3:$O$52,Waveforms!$A81,512) -> 4.948232066 | G81: 20393.96229 | H81: 24.48500058 | I81: 706.6443084
A82: 80 | B82: 56.25 | C82: 0.9817477042 | D82: =Cwavepoint(Parms!$L$3:$M$52,Waveforms!$A82,512) -> 143.8048573 | E82: =Cwavepoint(Parms!$N$3:$O$52,Waveforms!$A82,512) -> 5.039684597 | G82: 20679.83697 | H82: 25.39842083 | I82: 724.7311241
A83: 81 | B83: 56.953125 | C83: 0.9940195505 | D83: =Cwavepoint(Parms!$L$3:$M$52,Waveforms!$A83,512) -> 144.7529384 | E83: =Cwavepoint(Parms!$N$3:$O$52,Waveforms!$A83,512) -> 5.139938082 | G83: 20953.41317 | H83: 26.41896349 | I83: 744.0211406
A84: 82 | B84: 57.65625 | C84: 1.006291397 | D84: =Cwavepoint(Parms!$L$3:$M$52,Waveforms!$A84,512) -> 145.6575689 | E84: =Cwavepoint(Parms!$N$3:$O$52,Waveforms!$A84,512) -> 5.247341408 | G84: 21216.12737 | H84: 27.53459186 | I84: 764.3149926
A85: 83 | B85: 58.359375 | C85: 1.018563243 | D85: =Cwavepoint(Parms!$L$3:$M$52,Waveforms!$A85,512) -> 146.5249142 | E85: =Cwavepoint(Parms!$N$3:$O$52,Waveforms!$A85,512) -> 5.360129596 | G85: 21469.55049 | H85: 28.73098928 | I85: 785.3925293
A86: 84 | B86: 59.0625 | C86: 1.030835089 | D86: =Cwavepoint(Parms!$L$3:$M$52,Waveforms!$A86,512) -> 147.361273 | E86: =Cwavepoint(Parms!$N$3:$O$52,Waveforms!$A86,512) -> 5.476460581 | G86: 21715.34479 | H86: 29.9916205 | I86: 807.0182029
A87: 85 | B87: 59.765625 | C87: 1.043106936 | D87: =Cwavepoint(Parms!$L$3:$M$52,Waveforms!$A87,512) -> 148.1729395 | E87: =Cwavepoint(Parms!$N$3:$O$52,Waveforms!$A87,512) -> 5.594452751 | G87: 21955.22001 | H87: 31.29790159 | I87: 828.9465092
A88: 86 | B88: 60.46875 | C88: 1.055378782 | D88: =Cwavepoint(Parms!$L$3:$M$52,Waveforms!$A88,512) -> 148.9660699 | E88: =Cwavepoint(Parms!$N$3:$O$52,Waveforms!$A88,512) -> 5.712222379 | G88: 22190.88997 | H88: 32.62948451 | I88: 850.9273179
A89: 87 | B89: 61.171875 | C89: 1.067650628 | D89: =Cwavepoint(Parms!$L$3:$M$52,Waveforms!$A89,512) -> 149.7465548 | E89: =Cwavepoint(Parms!$N$3:$O$52,Waveforms!$A89,512) -> 5.827920113 | G89: 22424.03067 | H89: 33.96465284 | I89: 872.7109585
A90: 88 | B90: 61.875 | C90: 1.079922475 | D90: =Cwavepoint(Parms!$L$3:$M$52,Waveforms!$A90,512) -> 150.5199021 | E90: =Cwavepoint(Parms!$N$3:$O$52,Waveforms!$A90,512) -> 5.939765741 | G90: 22656.24091 | H90: 35.28081706 | I90: 894.0529576
A91: 89 | B91: 62.578125 | C91: 1.092194321 | D91: =Cwavepoint(Parms!$L$3:$M$52,Waveforms!$A91,512) -> 151.2911305 | E91: =Cwavepoint(Parms!$N$3:$O$52,Waveforms!$A91,512) -> 6.046080495 | G91: 22889.00616 | H91: 36.55508936 | I91: 914.718353
A92: 90 | B92: 63.28125 | C92: 1.104466167 | D92: =Cwavepoint(Parms!$L$3:$M$52,Waveforms!$A92,512) -> 152.0646784 | E92: =Cwavepoint(Parms!$N$3:$O$52,Waveforms!$A92,512) -> 6.145316247 | G92: 23123.66643 | H92: 37.76491178 | I92: 934.4855391
A93: 91 | B93: 63.984375 | C93: 1.116738014 | D93: =Cwavepoint(Parms!$L$3:$M$52,Waveforms!$A93,512) -> 152.8443283 | E93: =Cwavepoint(Parms!$N$3:$O$52,Waveforms!$A93,512) -> 6.23608105 | G93: 23361.3887 | H93: 38.88870686 | I93: 953.1496195
A94: 92 | B94: 64.6875 | C94: 1.12900986 | D94: =Cwavepoint(Parms!$L$3:$M$52,Waveforms!$A94,512) -> 153.633148 | E94: =Cwavepoint(Parms!$N$3:$O$52,Waveforms!$A94,512) -> 6.317160567 | G94: 23603.14416 | H94: 39.90651762 | I94: 970.5252642
A95: 93 | B95: 65.390625 | C95: 1.141281706 | D95: =Cwavepoint(Parms!$L$3:$M$52,Waveforms!$A95,512) -> 154.4334506 | E95: =Cwavepoint(Parms!$N$3:$O$52,Waveforms!$A95,512) -> 6.38753506 | G95: 23849.69065 | H95: 40.80060414 | I95: 986.4490799
A96: 94 | B96: 66.09375 | C96: 1.153553552 | D96: =Cwavepoint(Parms!$L$3:$M$52,Waveforms!$A96,512) -> 155.2467728 | E96: =Cwavepoint(Parms!$N$3:$O$52,Waveforms!$A96,512) -> 6.446391716 | G96: 24101.56046 | H96: 41.55596615 | I96: 1000.78151
A97: 95 | B97: 66.796875 | C97: 1.165825399 | D97: =Cwavepoint(Parms!$L$3:$M$52,Waveforms!$A97,512) -> 156.0738716 | E97: =Cwavepoint(Parms!$N$3:$O$52,Waveforms!$A97,512) -> 6.493132209 | G97: 24359.05341 | H97: 42.16076588 | I97: 1013.408283
A98: 96 | B98: 67.5 | C98: 1.178097245 | D98: =Cwavepoint(Parms!$L$3:$M$52,Waveforms!$A98,512) -> 156.9147391 | E98: =Cwavepoint(Parms!$N$3:$O$52,Waveforms!$A98,512) -> 6.527375526 | G98: 24622.23535 | H98: 42.60663126 | I98: 1024.241428
A99: 97 | B99: 68.203125 | C99: 1.190369091 | D99: =Cwavepoint(Parms!$L$3:$M$52,Waveforms!$A99,512) -> 157.7686337 | E99: =Cwavepoint(Parms!$N$3:$O$52,Waveforms!$A99,512) -> 6.548956191 | G99: 24890.94178 | H99: 42.88882719 | I99: 1033.21987
A100: 98 | B100: 68.90625 | C100: 1.202640938 | D100: =Cwavepoint(Parms!$L$3:$M$52,Waveforms!$A100,512) -> 158.6341274 | E100: =Cwavepoint(Parms!$N$3:$O$52,Waveforms!$A100,512) -> 6.557918116 | G100: 25164.78639 | H100: 43.00629001 | I100: 1040.309618
A101: 99 | B101: 69.609375 | C101: 1.214912784 | D101: =Cwavepoint(Parms!$L$3:$M$52,Waveforms!$A101,512) -> 159.5091669 | E101: =Cwavepoint(Parms!$N$3:$O$52,Waveforms!$A101,512) -> 6.554504445 | G101: 25443.17432 | H101: 42.96152852 | I101: 1045.503543
A102: 100 | B102: 70.3125 | C102: 1.22718463 | D102: =Cwavepoint(Parms!$L$3:$M$52,Waveforms!$A102,512) -> 160.3911457 | E102: =Cwavepoint(Parms!$N$3:$O$52,Waveforms!$A102,512) -> 6.539143789 | G102: 25725.31962 | H102: 42.76040149 | I102: 1048.820764
A103: 101 | B103: 71.015625 | C103: 1.239456477 | D103: =Cwavepoint(Parms!$L$3:$M$52,Waveforms!$A103,512) -> 161.2769867 | E103: =Cwavepoint(Parms!$N$3:$O$52,Waveforms!$A103,512) -> 6.512433368 | G103: 26010.26645 | H103: 42.41178837 | I103: 1050.30563
A104: 102 | B104: 71.71875 | C104: 1.251728323 | D104: =Cwavepoint(Parms!$L$3:$M$52,Waveforms!$A104,512) -> 162.1632312 | E104: =Cwavepoint(Parms!$N$3:$O$52,Waveforms!$A104,512) -> 6.475119605 | G104: 26296.91356 | H104: 41.9271739 | I104: 1050.026318
A105: 103 | B105: 72.421875 | C105: 1.264000169 | D105: =Cwavepoint(Parms!$L$3:$M$52,Waveforms!$A105,512) -> 163.0461322 | E105: =Cwavepoint(Parms!$N$3:$O$52,Waveforms!$A105,512) -> 6.428076765 | G105: 26584.04124 | H105: 41.3201709 | I105: 1048.073054
A106: 104 | B106: 73.125 | C106: 1.276272016 | D106: =Cwavepoint(Parms!$L$3:$M$52,Waveforms!$A106,512) -> 163.9217501 | E106: =Cwavepoint(Parms!$N$3:$O$52,Waveforms!$A106,512) -> 6.372284262 | G106: 26870.34016 | H106: 40.60600671 | I106: 1044.555988
A107: 105 | B107: 73.828125 | C107: 1.288543862 | D107: =Cwavepoint(Parms!$L$3:$M$52,Waveforms!$A107,512) -> 164.7860471 | E107: =Cwavepoint(Parms!$N$3:$O$52,Waveforms!$A107,512) -> 6.30880324 | G107: 27154.44133 | H107: 39.80099833 | I107: 1039.602748
A108: 106 | B108: 74.53125 | C108: 1.300815708 | D108: =Cwavepoint(Parms!$L$3:$M$52,Waveforms!$A108,512) -> 165.6349792 | E108: =Cwavepoint(Parms!$N$3:$O$52,Waveforms!$A108,512) -> 6.238753056 | G108: 27434.94633 | H108: 38.92203969 | I108: 1033.355733
A109: 107 | B109: 75.234375 | C109: 1.313087554 | D109: =Cwavepoint(Parms!$L$3:$M$52,Waveforms!$A109,512) -> 166.4645816 | E109: =Cwavepoint(Parms!$N$3:$O$52,Waveforms!$A109,512) -> 6.163288221 | G109: 27710.45693 | H109: 37.9861217 | I109: 1025.969195
A110: 108 | B110: 75.9375 | C110: 1.325359401 | D110: =Cwavepoint(Parms!$L$3:$M$52,Waveforms!$A110,512) -> 167.2710479 | E110: =Cwavepoint(Parms!$N$3:$O$52,Waveforms!$A110,512) -> 6.083576367 | G110: 27979.60347 | H110: 37.00990141 | I110: 1017.606194
A111: 109 | B111: 76.640625 | C111: 1.337631247 | D111: =Cwavepoint(Parms!$L$3:$M$52,Waveforms!$A111,512) -> 168.0507991 | E111: =Cwavepoint(Parms!$N$3:$O$52,Waveforms!$A111,512) -> 6.000777689 | G111: 28241.07108 | H111: 36.00933288 | I111: 1008.435486
A112: 110 | B112: 77.34375 | C112: 1.349903093 | D112: =Cwavepoint(Parms!$L$3:$M$52,Waveforms!$A112,512) -> 168.8005422 | E112: =Cwavepoint(Parms!$N$3:$O$52,Waveforms!$A112,512) -> 5.916026304 | G112: 28493.62305 | H112: 34.99936723 | I112: 998.628448
A113: 111 | B113: 78.046875 | C113: 1.36217494 | D113: =Cwavepoint(Parms!$L$3:$M$52,Waveforms!$A113,512) -> 169.5173171 | E113: =Cwavepoint(Parms!$N$3:$O$52,Waveforms!$A113,512) -> 5.830413847 | G113: 28736.12079 | H113: 33.99372563 | I113: 988.3561129
A114: 112 | B114: 78.75 | C114: 1.374446786 | D114: =Cwavepoint(Parms!$L$3:$M$52,Waveforms!$A114,512) -> 170.1985306 | E114: =Cwavepoint(Parms!$N$3:$O$52,Waveforms!$A114,512) -> 5.744975562 | G114: 28967.53981 | H114: 33.0047442 | I114: 977.7863988
A115: 113 | B115: 79.453125 | C115: 1.386718632 | D115: =Cwavepoint(Parms!$L$3:$M$52,Waveforms!$A115,512) -> 170.841978 | E115: =Cwavepoint(Parms!$N$3:$O$52,Waveforms!$A115,512) -> 5.66067906 | G115: 29186.98144 | H115: 32.04328742 | I115: 967.0816073
A116: 114 | B116: 80.15625 | C116: 1.398990479 | D116: =Cwavepoint(Parms!$L$3:$M$52,Waveforms!$A116,512) -> 171.4458515 | E116: =Cwavepoint(Parms!$N$3:$O$52,Waveforms!$A116,512) -> 5.578415815 | G116: 29393.68001 | H116: 31.11872301 | I116: 956.3962497
A117: 115 | B117: 80.859375 | C117: 1.411262325 | D117: =Cwavepoint(Parms!$L$3:$M$52,Waveforms!$A117,512) -> 172.0087366 | E117: =Cwavepoint(Parms!$N$3:$O$52,Waveforms!$A117,512) -> 5.498995392 | G117: 29587.00548 | H117: 30.23895032 | I117: 945.8752501
A118: 116 | B118: 81.5625 | C118: 1.423534171 | D118: =Cwavepoint(Parms!$L$3:$M$52,Waveforms!$A118,512) -> 172.5295965 | E118: =Cwavepoint(Parms!$N$3:$O$52,Waveforms!$A118,512) -> 5.423142305 | G118: 29766.46165 | H118: 29.41047246 | I118: 935.6525534
A119: 117 | B119: 82.265625 | C119: 1.435806017 | D119: =Cwavepoint(Parms!$L$3:$M$52,Waveforms!$A119,512) -> 173.0077462 | E119: =Cwavepoint(Parms!$N$3:$O$52,Waveforms!$A119,512) -> 5.351495347 | G119: 29931.68024 | H119: 28.63850245 | I119: 925.8501487
A120: 118 | B120: 82.96875 | C120: 1.448077864 | D120: =Cwavepoint(Parms!$L$3:$M$52,Waveforms!$A120,512) -> 173.4428181 | E120: =Cwavepoint(Parms!$N$3:$O$52,Waveforms!$A120,512) -> 5.284609138 | G120: 30082.41115 | H120: 27.92709374 | I120: 916.5775015
A121: 119 | B121: 83.671875 | C121: 1.46034971 | D121: =Cwavepoint(Parms!$L$3:$M$52,Waveforms!$A121,512) -> 173.8347194 | E121: =Cwavepoint(Parms!$N$3:$O$52,Waveforms!$A121,512) -> 5.222957597 | G121: 30218.50966 | H121: 27.27928606 | I121: 907.9313682
A122: 120 | B122: 84.375 | C122: 1.472621556 | D122: =Cwavepoint(Parms!$L$3:$M$52,Waveforms!$A122,512) -> 174.1835842 | E122: =Cwavepoint(Parms!$N$3:$O$52,Waveforms!$A122,512) -> 5.166938984 | G122: 30339.92102 | H122: 26.69725846 | I122: 899.9959517
A123: 121 | B123: 85.078125 | C123: 1.484893403 | D123: =Cwavepoint(Parms!$L$3:$M$52,Waveforms!$A123,512) -> 174.4897226 | E123: =Cwavepoint(Parms!$N$3:$O$52,Waveforms!$A123,512) -> 5.116882134 | G123: 30446.6633 | H123: 26.18248277 | I123: 892.8433443
A124: 122 | B124: 85.78125 | C124: 1.497165249 | D124: =Cwavepoint(Parms!$L$3:$M$52,Waveforms!$A124,512) -> 174.7535671 | E124: =Cwavepoint(Parms!$N$3:$O$52,Waveforms!$A124,512) -> 5.073053485 | G124: 30538.80922 | H124: 25.73587166 | I124: 886.5341926
A125: 123 | B125: 86.484375 | C125: 1.509437095 | D125: =Cwavepoint(Parms!$L$3:$M$52,Waveforms!$A125,512) -> 174.9756205 | E125: =Cwavepoint(Parms!$N$3:$O$52,Waveforms!$A125,512) -> 5.03566447 | G125: 30616.46776 | H125: 25.35791665 | I125: 881.1185151
A126: 124 | B126: 87.1875 | C126: 1.521708942 | D126: =Cwavepoint(Parms!$L$3:$M$52,Waveforms!$A126,512) -> 175.1564054 | E126: =Cwavepoint(Parms!$N$3:$O$52,Waveforms!$A126,512) -> 5.0048789 | G126: 30679.76636 | H126: 25.04881281 | I126: 876.6365977
A127: 125 | B127: 87.890625 | C127: 1.533980788 | D127: =Cwavepoint(Parms!$L$3:$M$52,Waveforms!$A127,512) -> 175.2964187 | E127: =Cwavepoint(Parms!$N$3:$O$52,Waveforms!$A127,512) -> 4.980819933 | G127: 30728.8344 | H127: 24.80856721 | I127: 873.1198964
A128: 126 | B128: 88.59375 | C128: 1.546252634 | D128: =Cwavepoint(Parms!$L$3:$M$52,Waveforms!$A128,512) -> 175.3960911 | E128: =Cwavepoint(Parms!$N$3:$O$52,Waveforms!$A128,512) -> 4.963576295 | G128: 30763.78877 | H128: 24.63708963 | I128: 870.5918799
A129: 127 | B129: 89.296875 | C129: 1.55852448 | D129: =Cwavepoint(Parms!$L$3:$M$52,Waveforms!$A129,512) -> 175.4557547 | E129: =Cwavepoint(Parms!$N$3:$O$52,Waveforms!$A129,512) -> 4.953207447 | G129: 30784.72187 | H129: 24.53426402 | I129: 869.068751
A130: 128 | B130: 90 | C130: 1.570796327 | D130: =Cwavepoint(Parms!$L$3:$M$52,Waveforms!$A130,512) -> 175.4756188 | E130: =Cwavepoint(Parms!$N$3:$O$52,Waveforms!$A130,512) -> 4.949747468 | G130: 30791.6928 | H130: 24.5 | I130: 868.56
A131: 129 | B131: =360*A131/512 -> 90.703125 | C131: =B131*PI()/180 -> 1.583068173 | D131: =Cwavepoint(Parms!$L$3:$M$52,Waveforms!$A131,512) -> 175.4557547 | E131: =Cwavepoint(Parms!$N$3:$O$52,Waveforms!$A131,512) -> 4.953207445 | G131: =D131*D131 -> 30784.72187 | H131: =E131*E131 -> 24.534264 | I131: =D131*E131 -> 869.0687508
A132: =A131+1 -> 130 | B132: 91.40625 | C132: 1.595340019 | D132: =Cwavepoint(Parms!$L$3:$M$52,Waveforms!$A132,512) -> 175.3960911 | E132: =Cwavepoint(Parms!$N$3:$O$52,Waveforms!$A132,512) -> 4.963576291 | G132: 30763.78878 | H132: 24.63708959 | I132: 870.5918793
A133: 131 | B133: 92.109375 | C133: 1.607611866 | D133: =Cwavepoint(Parms!$L$3:$M$52,Waveforms!$A133,512) -> 175.2964187 | E133: =Cwavepoint(Parms!$N$3:$O$52,Waveforms!$A133,512) -> 4.980819927 | G133: 30728.83441 | H133: 24.80856715 | I133: 873.1198955
A134: 132 | B134: 92.8125 | C134: 1.619883712 | D134: =Cwavepoint(Parms!$L$3:$M$52,Waveforms!$A134,512) -> 175.1564055 | E134: =Cwavepoint(Parms!$N$3:$O$52,Waveforms!$A134,512) -> 5.004878892 | G134: 30679.76637 | H134: 25.04881273 | I134: 876.6365965
A135: 133 | B135: 93.515625 | C135: 1.632155558 | D135: =Cwavepoint(Parms!$L$3:$M$52,Waveforms!$A135,512) -> 174.9756205 | E135: =Cwavepoint(Parms!$N$3:$O$52,Waveforms!$A135,512) -> 5.03566446 | G135: 30616.46778 | H135: 25.35791655 | I135: 881.1185137
A136: 134 | B136: 94.21875 | C136: 1.644427405 | D136: =Cwavepoint(Parms!$L$3:$M$52,Waveforms!$A136,512) -> 174.7535672 | E136: =Cwavepoint(Parms!$N$3:$O$52,Waveforms!$A136,512) -> 5.073053473 | G136: 30538.80925 | H136: 25.73587154 | I136: 886.5341909
A137: 135 | B137: 94.921875 | C137: 1.656699251 | D137: =Cwavepoint(Parms!$L$3:$M$52,Waveforms!$A137,512) -> 174.4897227 | E137: =Cwavepoint(Parms!$N$3:$O$52,Waveforms!$A137,512) -> 5.11688212 | G137: 30446.66333 | H137: 26.18248263 | I137: 892.8433423
A138: 136 | B138: 95.625 | C138: 1.668971097 | D138: =Cwavepoint(Parms!$L$3:$M$52,Waveforms!$A138,512) -> 174.1835843 | E138: =Cwavepoint(Parms!$N$3:$O$52,Waveforms!$A138,512) -> 5.166938968 | G138: 30339.92105 | H138: 26.6972583 | I138: 899.9959495
A139: 137 | B139: 96.328125 | C139: 1.681242944 | D139: =Cwavepoint(Parms!$L$3:$M$52,Waveforms!$A139,512) -> 173.8347195 | E139: =Cwavepoint(Parms!$N$3:$O$52,Waveforms!$A139,512) -> 5.22295758 | G139: 30218.5097 | H139: 27.27928588 | I139: 907.9313657
A140: 138 | B140: 97.03125 | C140: 1.69351479 | D140: =Cwavepoint(Parms!$L$3:$M$52,Waveforms!$A140,512) -> 173.4428182 | E140: =Cwavepoint(Parms!$N$3:$O$52,Waveforms!$A140,512) -> 5.284609119 | G140: 30082.41119 | H140: 27.92709354 | I140: 916.5774989
A141: 139 | B141: 97.734375 | C141: 1.705786636 | D141: =Cwavepoint(Parms!$L$3:$M$52,Waveforms!$A141,512) -> 173.0077463 | E141: =Cwavepoint(Parms!$N$3:$O$52,Waveforms!$A141,512) -> 5.351495326 | G141: 29931.68029 | H141: 28.63850223 | I141: 925.8501459
A142: 140 | B142: 98.4375 | C142: 1.718058482 | D142: =Cwavepoint(Parms!$L$3:$M$52,Waveforms!$A142,512) -> 172.5295966 | E142: =Cwavepoint(Parms!$N$3:$O$52,Waveforms!$A142,512) -> 5.423142283 | G142: 29766.4617 | H142: 29.41047222 | I142: 935.6525505
A143: 141 | B143: 99.140625 | C143: 1.730330329 | D143: =Cwavepoint(Parms!$L$3:$M$52,Waveforms!$A143,512) -> 172.0087368 | E143: =Cwavepoint(Parms!$N$3:$O$52,Waveforms!$A143,512) -> 5.498995369 | G143: 29587.00553 | H143: 30.23895007 | I143: 945.8752471
A144: 142 | B144: 99.84375 | C144: 1.742602175 | D144: =Cwavepoint(Parms!$L$3:$M$52,Waveforms!$A144,512) -> 171.4458517 | E144: =Cwavepoint(Parms!$N$3:$O$52,Waveforms!$A144,512) -> 5.578415792 | G144: 29393.68007 | H144: 31.11872275 | I144: 956.3962466
A145: 143 | B145: 100.546875 | C145: 1.754874021 | D145: =Cwavepoint(Parms!$L$3:$M$52,Waveforms!$A145,512) -> 170.8419782 | E145: =Cwavepoint(Parms!$N$3:$O$52,Waveforms!$A145,512) -> 5.660679035 | G145: 29186.98151 | H145: 32.04328714 | I145: 967.0816042
A146: 144 | B146: 101.25 | C146: 1.767145868 | D146: =Cwavepoint(Parms!$L$3:$M$52,Waveforms!$A146,512) -> 170.1985308 | E146: =Cwavepoint(Parms!$N$3:$O$52,Waveforms!$A146,512) -> 5.744975537 | G146: 28967.53988 | H146: 33.00474392 | I146: 977.7863957
A147: 145 | B147: 101.953125 | C147: 1.779417714 | D147: =Cwavepoint(Parms!$L$3:$M$52,Waveforms!$A147,512) -> 169.5173173 | E147: =Cwavepoint(Parms!$N$3:$O$52,Waveforms!$A147,512) -> 5.830413822 | G147: 28736.12086 | H147: 33.99372533 | I147: 988.3561098
A148: 146 | B148: 102.65625 | C148: 1.79168956 | D148: =Cwavepoint(Parms!$L$3:$M$52,Waveforms!$A148,512) -> 168.8005424 | E148: =Cwavepoint(Parms!$N$3:$O$52,Waveforms!$A148,512) -> 5.916026279 | G148: 28493.62313 | H148: 34.99936694 | I148: 998.628445
A149: 147 | B149: 103.359375 | C149: 1.803961407 | D149: =Cwavepoint(Parms!$L$3:$M$52,Waveforms!$A149,512) -> 168.0507993 | E149: =Cwavepoint(Parms!$N$3:$O$52,Waveforms!$A149,512) -> 6.000777665 | G149: 28241.07116 | H149: 36.00933258 | I149: 1008.435483
A150: 148 | B150: 104.0625 | C150: 1.816233253 | D150: =Cwavepoint(Parms!$L$3:$M$52,Waveforms!$A150,512) -> 167.2710481 | E150: =Cwavepoint(Parms!$N$3:$O$52,Waveforms!$A150,512) -> 6.083576343 | G150: 27979.60355 | H150: 37.00990112 | I150: 1017.606191
A151: 149 | B151: 104.765625 | C151: 1.828505099 | D151: =Cwavepoint(Parms!$L$3:$M$52,Waveforms!$A151,512) -> 166.4645818 | E151: =Cwavepoint(Parms!$N$3:$O$52,Waveforms!$A151,512) -> 6.163288199 | G151: 27710.45701 | H151: 37.98612142 | I151: 1025.969193
A152: 150 | B152: 105.46875 | C152: 1.840776945 | D152: =Cwavepoint(Parms!$L$3:$M$52,Waveforms!$A152,512) -> 165.6349794 | E152: =Cwavepoint(Parms!$N$3:$O$52,Waveforms!$A152,512) -> 6.238753034 | G152: 27434.94641 | H152: 38.92203943 | I152: 1033.355731
A153: 151 | B153: 106.171875 | C153: 1.853048792 | D153: =Cwavepoint(Parms!$L$3:$M$52,Waveforms!$A153,512) -> 164.7860474 | E153: =Cwavepoint(Parms!$N$3:$O$52,Waveforms!$A153,512) -> 6.308803221 | G153: 27154.44142 | H153: 39.80099808 | I153: 1039.602747
A154: 152 | B154: 106.875 | C154: 1.865320638 | D154: =Cwavepoint(Parms!$L$3:$M$52,Waveforms!$A154,512) -> 163.9217504 | E154: =Cwavepoint(Parms!$N$3:$O$52,Waveforms!$A154,512) -> 6.372284244 | G154: 26870.34024 | H154: 40.60600649 | I154: 1044.555987
A155: 153 | B155: 107.578125 | C155: 1.877592484 | D155: =Cwavepoint(Parms!$L$3:$M$52,Waveforms!$A155,512) -> 163.0461325 | E155: =Cwavepoint(Parms!$N$3:$O$52,Waveforms!$A155,512) -> 6.42807675 | G155: 26584.04132 | H155: 41.3201707 | I155: 1048.073053
A156: 154 | B156: 108.28125 | C156: 1.889864331 | D156: =Cwavepoint(Parms!$L$3:$M$52,Waveforms!$A156,512) -> 162.1632315 | E156: =Cwavepoint(Parms!$N$3:$O$52,Waveforms!$A156,512) -> 6.475119592 | G156: 26296.91365 | H156: 41.92717374 | I156: 1050.026317
A157: 155 | B157: 108.984375 | C157: 1.902136177 | D157: =Cwavepoint(Parms!$L$3:$M$52,Waveforms!$A157,512) -> 161.276987 | E157: =Cwavepoint(Parms!$N$3:$O$52,Waveforms!$A157,512) -> 6.512433359 | G157: 26010.26654 | H157: 42.41178825 | I157: 1050.30563
A158: 156 | B158: 109.6875 | C158: 1.914408023 | D158: =Cwavepoint(Parms!$L$3:$M$52,Waveforms!$A158,512) -> 160.391146 | E158: =Cwavepoint(Parms!$N$3:$O$52,Waveforms!$A158,512) -> 6.539143783 | G158: 25725.3197 | H158: 42.76040141 | I158: 1048.820765
A159: 157 | B159: 110.390625 | C159: 1.92667987 | D159: =Cwavepoint(Parms!$L$3:$M$52,Waveforms!$A159,512) -> 159.5091671 | E159: =Cwavepoint(Parms!$N$3:$O$52,Waveforms!$A159,512) -> 6.554504442 | G159: 25443.1744 | H159: 42.96152848 | I159: 1045.503545
A160: 158 | B160: 111.09375 | C160: 1.938951716 | D160: =Cwavepoint(Parms!$L$3:$M$52,Waveforms!$A160,512) -> 158.6341277 | E160: =Cwavepoint(Parms!$N$3:$O$52,Waveforms!$A160,512) -> 6.557918117 | G160: 25164.78647 | H160: 43.00629002 | I160: 1040.30962
A161: 159 | B161: 111.796875 | C161: 1.951223562 | D161: =Cwavepoint(Parms!$L$3:$M$52,Waveforms!$A161,512) -> 157.768634 | E161: =Cwavepoint(Parms!$N$3:$O$52,Waveforms!$A161,512) -> 6.548956195 | G161: 24890.94186 | H161: 42.88882725 | I161: 1033.219873
A162: 160 | B162: 112.5 | C162: 1.963495408 | D162: =Cwavepoint(Parms!$L$3:$M$52,Waveforms!$A162,512) -> 156.9147394 | E162: =Cwavepoint(Parms!$N$3:$O$52,Waveforms!$A162,512) -> 6.527375535 | G162: 24622.23543 | H162: 42.60663137 | I162: 1024.241431
A163: 161 | B163: 113.203125 | C163: 1.975767255 | D163: =Cwavepoint(Parms!$L$3:$M$52,Waveforms!$A163,512) -> 156.0738719 | E163: =Cwavepoint(Parms!$N$3:$O$52,Waveforms!$A163,512) -> 6.493132221 | G163: 24359.05348 | H163: 42.16076604 | I163: 1013.408286
A164: 162 | B164: 113.90625 | C164: 1.988039101 | D164: =Cwavepoint(Parms!$L$3:$M$52,Waveforms!$A164,512) -> 155.246773 | E164: =Cwavepoint(Parms!$N$3:$O$52,Waveforms!$A164,512) -> 6.446391731 | G164: 24101.56053 | H164: 41.55596635 | I164: 1000.781514
A165: 163 | B165: 114.609375 | C165: 2.000310947 | D165: =Cwavepoint(Parms!$L$3:$M$52,Waveforms!$A165,512) -> 154.4334508 | E165: =Cwavepoint(Parms!$N$3:$O$52,Waveforms!$A165,512) -> 6.387535079 | G165: 23849.69073 | H165: 40.80060438 | I165: 986.4490844
A166: 164 | B166: 115.3125 | C166: 2.012582794 | D166: =Cwavepoint(Parms!$L$3:$M$52,Waveforms!$A166,512) -> 153.6331482 | E166: =Cwavepoint(Parms!$N$3:$O$52,Waveforms!$A166,512) -> 6.317160589 | G166: 23603.14423 | H166: 39.9065179 | I166: 970.5252691
A167: 165 | B167: 116.015625 | C167: 2.02485464 | D167: =Cwavepoint(Parms!$L$3:$M$52,Waveforms!$A167,512) -> 152.8443286 | E167: =Cwavepoint(Parms!$N$3:$O$52,Waveforms!$A167,512) -> 6.236081075 | G167: 23361.38877 | H167: 38.88870717 | I167: 953.1496248
A168: 166 | B168: 116.71875 | C168: 2.037126486 | D168: =Cwavepoint(Parms!$L$3:$M$52,Waveforms!$A168,512) -> 152.0646787 | E168: =Cwavepoint(Parms!$N$3:$O$52,Waveforms!$A168,512) -> 6.145316275 | G168: 23123.6665 | H168: 37.76491212 | I168: 934.4855447
A169: 167 | B169: 117.421875 | C169: 2.049398333 | D169: =Cwavepoint(Parms!$L$3:$M$52,Waveforms!$A169,512) -> 151.2911307 | E169: =Cwavepoint(Parms!$N$3:$O$52,Waveforms!$A169,512) -> 6.046080525 | G169: 22889.00622 | H169: 36.55508972 | I169: 914.7183589
A170: 168 | B170: 118.125 | C170: 2.061670179 | D170: =Cwavepoint(Parms!$L$3:$M$52,Waveforms!$A170,512) -> 150.5199023 | E170: =Cwavepoint(Parms!$N$3:$O$52,Waveforms!$A170,512) -> 5.939765773 | G170: 22656.24098 | H170: 35.28081744 | I170: 894.0529637
A171: 169 | B171: 118.828125 | C171: 2.073942025 | D171: =Cwavepoint(Parms!$L$3:$M$52,Waveforms!$A171,512) -> 149.746555 | E171: =Cwavepoint(Parms!$N$3:$O$52,Waveforms!$A171,512) -> 5.827920146 | G171: 22424.03074 | H171: 33.96465323 | I171: 872.7109649
A172: 170 | B172: 119.53125 | C172: 2.086213872 | D172: =Cwavepoint(Parms!$L$3:$M$52,Waveforms!$A172,512) -> 148.9660701 | E172: =Cwavepoint(Parms!$N$3:$O$52,Waveforms!$A172,512) -> 5.712222413 | G172: 22190.89004 | H172: 32.6294849 | I172: 850.9273243
A173: 171 | B173: 120.234375 | C173: 2.098485718 | D173: =Cwavepoint(Parms!$L$3:$M$52,Waveforms!$A173,512) -> 148.1729398 | E173: =Cwavepoint(Parms!$N$3:$O$52,Waveforms!$A173,512) -> 5.594452786 | G173: 21955.22008 | H173: 31.29790197 | I173: 828.9465156
A174: 172 | B174: 120.9375 | C174: 2.110757564 | D174: =Cwavepoint(Parms!$L$3:$M$52,Waveforms!$A174,512) -> 147.3612733 | E174: =Cwavepoint(Parms!$N$3:$O$52,Waveforms!$A174,512) -> 5.476460615 | G174: 21715.34486 | H174: 29.99162087 | I174: 807.0182092
A175: 173 | B175: 121.640625 | C175: 2.12302941 | D175: =Cwavepoint(Parms!$L$3:$M$52,Waveforms!$A175,512) -> 146.5249145 | E175: =Cwavepoint(Parms!$N$3:$O$52,Waveforms!$A175,512) -> 5.360129629 | G175: 21469.55056 | H175: 28.73098964 | I175: 785.3925355
A176: 174 | B176: 122.34375 | C176: 2.135301257 | D176: =Cwavepoint(Parms!$L$3:$M$52,Waveforms!$A176,512) -> 145.6575691 | E176: =Cwavepoint(Parms!$N$3:$O$52,Waveforms!$A176,512) -> 5.247341441 | G176: 21216.12744 | H176: 27.5345922 | I176: 764.3149986
A177: 175 | B177: 123.046875 | C177: 2.147573103 | D177: =Cwavepoint(Parms!$L$3:$M$52,Waveforms!$A177,512) -> 144.7529387 | E177: =Cwavepoint(Parms!$N$3:$O$52,Waveforms!$A177,512) -> 5.139938113 | G177: 20953.41325 | H177: 26.4189638 | I177: 744.0211464
A178: 176 | B178: 123.75 | C178: 2.159844949 | D178: =Cwavepoint(Parms!$L$3:$M$52,Waveforms!$A178,512) -> 143.8048575 | E178: =Cwavepoint(Parms!$N$3:$O$52,Waveforms!$A178,512) -> 5.039684625 | G178: 20679.83705 | H178: 25.39842112 | I178: 724.7311296
A179: 177 | B179: 124.453125 | C179: 2.172116796 | D179: =Cwavepoint(Parms!$L$3:$M$52,Waveforms!$A179,512) -> 142.8074311 | E179: =Cwavepoint(Parms!$N$3:$O$52,Waveforms!$A179,512) -> 4.948232091 | G179: 20393.96238 | H179: 24.48500083 | I179: 706.6443135
A180: 178 | B180: 125.15625 | C180: 2.184388642 | D180: =Cwavepoint(Parms!$L$3:$M$52,Waveforms!$A180,512) -> 141.7551702 | E180: =Cwavepoint(Parms!$N$3:$O$52,Waveforms!$A180,512) -> 4.867082609 | G180: 20094.52828 | H180: 23.68849312 | I180: 689.9341236
A181: 179 | B181: 125.859375 | C181: 2.196660488 | D181: =Cwavepoint(Parms!$L$3:$M$52,Waveforms!$A181,512) -> 140.6431198 | E181: =Cwavepoint(Parms!$N$3:$O$52,Waveforms!$A181,512) -> 4.797556577 | G181: 19780.48715 | H181: 23.01654911 | I181: 674.7433245
A182: 180 | B182: 126.5625 | C182: 2.208932335 | D182: =Cwavepoint(Parms!$L$3:$M$52,Waveforms!$A182,512) -> 139.4669781 | E182: =Cwavepoint(Parms!$N$3:$O$52,Waveforms!$A182,512) -> 4.740763304 | G182: 19451.03797 | H182: 22.47483671 | I182: 661.1799318
A183: 181 | B183: 127.265625 | C183: 2.221204181 | D183: =Cwavepoint(Parms!$L$3:$M$52,Waveforms!$A183,512) -> 138.2232027 | E183: =Cwavepoint(Parms!$N$3:$O$52,Waveforms!$A183,512) -> 4.697575653 | G183: 19105.65377 | H183: 22.06721702 | I183: 649.3139519
A184: 182 | B184: 127.96875 | C184: 2.233476027 | D184: =Cwavepoint(Parms!$L$3:$M$52,Waveforms!$A184,512) -> 136.9091025 | E184: =Cwavepoint(Parms!$N$3:$O$52,Waveforms!$A184,512) -> 4.668609397 | G184: 18744.10235 | H184: 21.7959137 | I184: 639.1751226
A185: 183 | B185: 128.671875 | C185: 2.245747873 | D185: =Cwavepoint(Parms!$L$3:$M$52,Waveforms!$A185,512) -> 135.5229105 | E185: =Cwavepoint(Parms!$N$3:$O$52,Waveforms!$A185,512) -> 4.654207861 | G185: 18366.45928 | H185: 21.66165082 | I185: 630.7517956
A186: 184 | B186: 129.375 | C186: 2.25801972 | D186: =Cwavepoint(Parms!$L$3:$M$52,Waveforms!$A186,512) -> 134.0638378 | E186: =Cwavepoint(Parms!$N$3:$O$52,Waveforms!$A186,512) -> 4.654432311 | G186: 17973.11261 | H186: 21.66374014 | I186: 623.9910584
A187: 185 | B187: 130.078125 | C187: 2.270291566 | D187: =Cwavepoint(Parms!$L$3:$M$52,Waveforms!$A187,512) -> 132.5321056 | E187: =Cwavepoint(Parms!$N$3:$O$52,Waveforms!$A187,512) -> 4.669058423 | G187: 17564.75901 | H187: 21.80010655 | I187: 618.8001439
A188: 186 | B188: 130.78125 | C188: 2.282563412 | D188: =Cwavepoint(Parms!$L$3:$M$52,Waveforms!$A188,512) -> 130.9289548 | E188: =Cwavepoint(Parms!$N$3:$O$52,Waveforms!$A188,512) -> 4.697579024 | G188: 17142.39119 | H188: 22.06724869 | I188: 615.0491115
A189: 187 | B189: 131.484375 | C189: 2.294835259 | D189: =Cwavepoint(Parms!$L$3:$M$52,Waveforms!$A189,512) -> 129.2566322 | E189: =Cwavepoint(Parms!$N$3:$O$52,Waveforms!$A189,512) -> 4.739213163 | G189: 16707.27697 | H189: 22.4601414 | I189: 612.5747328
A190: 188 | B190: 132.1875 | C190: 2.307107105 | D190: =Cwavepoint(Parms!$L$3:$M$52,Waveforms!$A190,512) -> 127.5183541 | E190: =Cwavepoint(Parms!$N$3:$O$52,Waveforms!$A190,512) -> 4.792921386 | G190: 16260.93062 | H190: 22.97209541 | I190: 611.1854463
A191: 189 | B191: 132.890625 | C191: 2.319378951 | D191: =Cwavepoint(Parms!$L$3:$M$52,Waveforms!$A191,512) -> 125.7182459 | E191: =Cwavepoint(Parms!$N$3:$O$52,Waveforms!$A191,512) -> 4.857426993 | G191: 15805.07736 | H191: 23.59459699 | I191: 610.6672013
A192: 190 | B192: 133.59375 | C192: 2.331650798 | D192: =Cwavepoint(Parms!$L$3:$M$52,Waveforms!$A192,512) -> 123.8612619 | E192: =Cwavepoint(Parms!$N$3:$O$52,Waveforms!$A192,512) -> 4.931242851 | G192: 15341.6122 | H192: 24.31715605 | I192: 610.7899623
A193: 191 | B193: 134.296875 | C193: 2.343922644 | D193: =Cwavepoint(Parms!$L$3:$M$52,Waveforms!$A193,512) -> 121.9530834 | E193: =Cwavepoint(Parms!$N$3:$O$52,Waveforms!$A193,512) -> 5.012703227 | G193: 14872.55456 | H193: 25.12719364 | I193: 611.3146149
A194: 192 | B194: 135 | C194: 2.35619449 | D194: =Cwavepoint(Parms!$L$3:$M$52,Waveforms!$A194,512) -> 120.0000004 | E194: =Cwavepoint(Parms!$N$3:$O$52,Waveforms!$A194,512) -> 5.09999998 | G194: 14400.0001 | H194: 26.0099998 | I194: 611.9999998
A195: 193 | B195: =360*A195/512 -> 135.703125 | C195: =B195*PI()/180 -> 2.368466336 | D195: =Cwavepoint(Parms!$L$3:$M$52,Waveforms!$A195,512) -> 118.0087773 | E195: =Cwavepoint(Parms!$N$3:$O$52,Waveforms!$A195,512) -> 5.191222309 | G195: =D195*D195 -> 13926.07151 | H195: =E195*E195 -> 26.94878906 | I195: =D195*E195 -> 612.6097972
A196: =A195+1 -> 194 | B196: 136.40625 | C196: 2.380738183 | D196: =Cwavepoint(Parms!$L$3:$M$52,Waveforms!$A196,512) -> 115.9865067 | E196: =Cwavepoint(Parms!$N$3:$O$52,Waveforms!$A196,512) -> 5.284399176 | G196: 13452.86973 | H196: 27.92487465 | I196: 612.9190003
A197: 195 | B197: 137.109375 | C197: 2.393010029 | D197: =Cwavepoint(Parms!$L$3:$M$52,Waveforms!$A197,512) -> 113.9404548 | E197: =Cwavepoint(Parms!$N$3:$O$52,Waveforms!$A197,512) -> 5.377543447 | G197: 12982.42723 | H197: 28.91797352 | I197: 612.7197459
A198: 196 | B198: 137.8125 | C198: 2.405281875 | D198: =Cwavepoint(Parms!$L$3:$M$52,Waveforms!$A198,512) -> 111.8779012 | E198: =Cwavepoint(Parms!$N$3:$O$52,Waveforms!$A198,512) -> 5.46869671 | G198: 12516.66478 | H198: 29.9066437 | I198: 611.8263104
A199: 197 | B199: 138.515625 | C199: 2.417553722 | D199: =Cwavepoint(Parms!$L$3:$M$52,Waveforms!$A199,512) -> 109.8059779 | E199: =Cwavepoint(Parms!$N$3:$O$52,Waveforms!$A199,512) -> 5.555973731 | G199: 12057.35279 | H199: 30.8688441 | I199: 610.079129
A200: 198 | B200: 139.21875 | C200: 2.429825568 | D200: =Cwavepoint(Parms!$L$3:$M$52,Waveforms!$A200,512) -> 107.7315104 | E200: =Cwavepoint(Parms!$N$3:$O$52,Waveforms!$A200,512) -> 5.637605476 | G200: 11606.07833 | H200: 31.78259551 | I200: 607.3477529
... 315 more rows
